Cogmind - Beta 13 X1 @@@ ROGUE MODE // 2023.09.26 @ 14:57:17 Player: DuckBoy Result: Self-destructed Performance ------------- Evolutions (2) 1000 Regions Visited (6) 1200 Robots Destroyed (94) 470 Value Destroyed (2425) 2425 Prototype IDs (25) 500 Alien Tech Used (0) 0 Bonus (304) 304 TOTAL SCORE: 5899 Bonus ------- High Alert Combat Kills 70 Follower Combat Kills 118 Aligned with FarCom 300 Friendly Fire -184 Cogmind --------- Core Integrity 86/550 Matter 300/300 Energy 100/100 System Corruption 0% Temperature Cool (0) Movement Treading (170) Location -8/Materials Parts ------- > --- POWER (1) -------- (None) > --- PROPULSION (2) --- Armored Treads Armored Treads > --- UTILITY (6) ------ Large Storage Unit Improved Targeting Computer Hacking Suite Hacking Suite Hacking Suite > --- WEAPON (2) ------- Longsword +1 > --- INVENTORY (15) --- Armored Treads Armored Treads Compact Wheel Compact Wheel Structural Scanner Experimental Sensor Array Relay Coupler [Sentry] (17) Relay Coupler [Sentry] (17) Relay Coupler [Sentry] (13) Relay Coupler [Sentry] (14) Relay Coupler [Specialist] (17) Peak State ------------ > --- POWER ------------ Light Ion Engine > --- PROPULSION ------- Armored Treads Armored Treads > --- UTILITY ---------- Large Storage Unit Structural Scanner Improved Targeting Computer Medium Armor Plating Hacking Suite Hacking Suite > --- WEAPON ----------- Heavy Assault Rifle Longsword +1 > --- INVENTORY -------- Light Ion Engine Armored Treads Armored Treads Armored Treads Armored Treads Armored Treads Armored Treads Compact Wheel Compact Wheel Experimental Sensor Array Hacking Suite System Shield Assault Rifle Enhanced Autogun EMP Blaster [Rating: 33] Favorites ----------- Power Light Ion Engine Engine Light Ion Engine Power Core Light Nuclear Core Propulsion Armored Treads Treads Armored Treads Wheel Compact Wheel Utility Hacking Suite Device Structural Scanner Storage Large Storage Unit Processor Improved Targeting Computer Hackware Hacking Suite Protection Medium Armor Plating Weapon Enhanced Autogun Energy Gun Medium Laser Ballistic Gun Enhanced Autogun Launcher EMP Blaster Slashing Weapon Longsword +1 Build | -11 -10 -9 -9 -9 -8 -8 ------- Run | Jun Mat Mat Min Exi Min Mat Slots Evolved 4 | . . 2 . . . 2 Power . | . . . . . . . Propulsion . | . . . . . . . Utility 4 | . . 2 . . . 2 Weapon . | . . . . . . . Parts Attached 68 | 6 12 23 4 1 . 22 Power 7 | 1 1 2 2 . . 1 Engine 6 | 1 1 1 2 . . 1 Core 1 | . . 1 . . . . Reactor . | . . . . . . . Propulsion 25 | 2 6 10 . . . 7 Treads 17 | 2 3 5 . . . 7 Leg . | . . . . . . . Wheel 8 | . 3 5 . . . . Hover . | . . . . . . . Flight . | . . . . . . . Utility 14 | 1 1 4 1 1 . 6 Device 2 | . 1 1 . . . . Storage 3 | 1 . 1 . 1 . . Processor 1 | . . 1 . . . . Hackware 5 | . . . . . . 5 Protection 3 | . . 1 1 . . 1 Artifact . | . . . . . . . Weapon 22 | 2 4 7 1 . . 8 Energy Gun 5 | 2 2 1 . . . . Energy Cannon . | . . . . . . . Ballistic Gun 12 | . 2 5 1 . . 4 Ballistic Cannon . | . . . . . . . Launcher 2 | . . 1 . . . 1 Special Weapon . | . . . . . . . Impact Weapon . | . . . . . . . Slashing Weapon 3 | . . . . . . 3 Piercing Weapon . | . . . . . . . Special Melee Weapon . | . . . . . . . Unidentified Prototypes 2 | . . 2 . . . . Parts Lost 20 | . 2 4 2 . . 12 Power 5 | . 2 1 . . . 2 Propulsion 5 | . . 1 . . . 4 Utility 4 | . . 1 1 . . 2 Weapon 6 | . . 1 1 . . 4 Highest Loss Streak 12 | . 1 2 2 . . 12 To Critical Strikes . | . . . . . . . Average Slot Usage (%) 83 | . 89 88 92 100 100 76 Engine 4 | . 10 . 9 11 11 1 Treads 16 | . 15 3 22 22 22 17 Wheel 3 | . 12 18 . . . . Device 5 | . 7 15 11 11 11 1 Storage 10 | . 14 11 11 11 11 9 Processor 8 | . . 9 11 11 11 9 Hackware 14 | . . . . . . 25 Protection 3 | . . 4 6 11 11 1 Energy Gun 2 | . 17 2 . . . . Ballistic Gun 9 | . 10 19 21 22 22 3 Slashing Weapon 4 | . . . . . . 7 Naked Turns . | . . . . . . . Heaviest Build 37 | 14 15 33 37 37 37 37 Greatest Support 40 | 40 40 40 40 40 40 40 Greatest Overweight (x) 1 | . 1 1 . . . . Average Overweight (x) . | . . . . . . . Largest Inventory Capacity 15 | 8 8 15 15 15 15 15 Average Capacity 14 | 6 8 14 15 15 15 15 Most Carried 15 | 4 8 15 15 15 15 15 Average Carried 11 | 2 7 13 14 14 15 10 Final Capacity 15 | 8 8 15 15 15 15 15 Final Carried 15 | 4 8 14 15 15 15 11 Class Distribution -------------------- 53% | Hacker-Mutant 46% | Mutant Dominant Class ---------------- Mutant | -10/Materials Mutant | -9/Materials Mutant | -9/Mines Mutant | -9/Exiles Mutant | -8/Mines Hacker-Mutant | -8/Materials Resources | -11 -10 -9 -9 -9 -8 -8 ----------- Run | Jun Mat Mat Min Exi Min Mat Matter Collected 1928 | 229 197 768 343 . . 391 Remotely . | . . . . . . . Salvage Created 3465 | . 480 1333 398 . . 1254 Parts 231 | . 30 87 26 . . 88 Haulers Intercepted 7 | . 2 4 . . . 1 Recyclers Shooed 1 | . . . . . . 1 Parts Field Recycled . | . . . . . . . Retrieved Matter . | . . . . . . . Parts Self-Destructed . | . . . . . . . Prevented . | . . . . . . . Kills | -11 -10 -9 -9 -9 -8 -8 ------- Run | Jun Mat Mat Min Exi Min Mat Combat Hostiles Destroyed 66 | . 8 20 15 . . 23 Melee 15 | . . . . . . 15 Guns 48 | . 8 18 15 . . 7 AOE 3 | . . 2 . . . 1 Classes Destroyed 12 | . 5 4 1 . . 2 Worker 3 | . . 1 . . . 2 Builder 4 | . 2 1 . . . 1 Hauler 7 | . 2 4 . . . 1 Recycler 3 | . . 3 . . . . Operator 3 | . . 2 . . . 1 Watcher 7 | . 2 3 . . . 2 Swarmer 20 | . 3 3 9 . . 5 Grunt 30 | . 5 13 4 . . 8 Duelist 2 | . . . 2 . . . Sentry 11 | . . 4 . . . 7 Specialist 2 | . . . . . . 2 Programmer 2 | . . . . . . 2 Best Kill Streak 12 | . 2 12 4 . . 9 Combat Bots Only 8 | . 2 6 4 . . 8 Max Kills in Single Turn 2 | . 1 1 1 . . 2 Gunslinging . | . . . . . . . Exploded 1 | . . 1 . . . 1 Melee 1 | . . . . . . 1 Uniques/NPCs Destroyed . | . . . . . . . Combat | -11 -10 -9 -9 -9 -8 -8 -------- Run | Jun Mat Mat Min Exi Min Mat Damage Taken 4484 | . 661 761 394 . . 2668 Core 900 | . 222 153 61 . . 464 Absorbed by Shields . | . . . . . . . Redirected to Shielding 50 | . . 13 37 . . . Core Remaining (%) 52 | 100 11 . . . 46 . Volleys Fired 211 | . 50 89 35 . . 37 Largest 2 | . 2 2 2 . . 2 Hottest 90 | . 90 70 50 . . 56 Shots Fired 408 | . 100 168 70 . . 70 Gun 401 | . 100 163 70 . . 68 Cannon . | . . . . . . . Launcher 7 | . . 5 . . . 2 Special . | . . . . . . . Kinetic 322 | . 35 149 70 . . 68 Thermal 44 | . 30 14 . . . . Explosive . | . . . . . . . Electromagnetic 42 | . 35 5 . . . 2 Robot Hit Streak 30 | . 15 20 19 . . 30 Robot Miss Streak 6 | . 6 2 4 . . 3 Penetration Max . | . . . . . . . Secondary Targets 7 | . . 3 3 . . 1 Max Gunslinging Chain 1 | . . 1 1 . . 1 Shots Hit Robots 309 | . 62 114 48 . . 85 Core Hits 128 | . 26 44 17 . . 41 Critical Kills 1 | . 1 . . . . . Critical Parts Destroyed . | . . . . . . . Critical Strikes 10 | . 3 4 . . . 3 Burn 6 | . 2 4 . . . . Destroy 1 | . 1 . . . . . Sever 3 | . . . . . . 3 Melee Attacks 37 | . . . . . . 37 Impact . | . . . . . . . Slashing 37 | . . . . . . 37 Piercing . | . . . . . . . Sneak Attacks 6 | . . . . . . 6 Combat Hostiles 3 | . . . . . . 3 Follow-up Attacks . | . . . . . . . Damage Inflicted 6509 | . 793 1959 813 . 23 2921 Guns 4261 | . 758 1863 813 . . 827 Cannons . | . . . . . . . Explosions 335 | . 35 96 . . . 204 Melee 1881 | . . . . . . 1881 Ramming 32 | . . . . . 23 9 Kinetic 3603 | . 225 1738 813 . . 827 Thermal 403 | . 260 143 . . . . Explosive . | . . . . . . . Electromagnetic 590 | . 308 78 . . . 204 Impact . | . . . . . . . Slashing 1881 | . . . . . . 1881 Piercing . | . . . . . . . Highest Corruption . | . . . . . . . Average Corruption . | . . . . . . . Corruption Purged . | . . . . . . . Corruption Blocked . | . . . . . . . Overload Shots . | . . . . . . . Overflow Damage 154 | . . . . . 1 153 Projectiles . | . . . . . . . Explosions . | . . . . . . . Melee 154 | . . . . . 1 153 Knockbacks . | . . . . . . . Impact . | . . . . . . . Kinetic . | . . . . . . . Secondary . | . . . . . . . Self-Inflicted Damage 31 | . 12 . . . . 19 Shots 3 | . 1 . . . . 2 Rammed 6 | . . . . . 3 3 Targets Rammed 7 | . . . . . 3 4 Kicked . | . . . . . . . Crushed 1 | . . . . . . 1 Highest Temperature 270 | . 270 57 16 . . 69 Average Temperature 42 | . 68 24 5 . . 14 Received Heat Transfer 1671 | . 252 279 60 . . 1080 Effects 2 | . 2 . . . . . Interference 2 | . 2 . . . . . Siege Activations . | . . . . . . . Robots Corrupted . | . . . . . . . Combat Hostiles . | . . . . . . . Parts Fried 1 | . 1 . . . . . Impact Corruptions 1 | . . . . . 1 . Robots Melted . | . . . . . . . Combat Hostiles . | . . . . . . . Parts Melted 2 | . 2 . . . . . Heat Transferred 1580 | . 864 716 . . . . Parts Sabotaged . | . . . . . . . Parts Stolen . | . . . . . . . Parts Stripped . | . . . . . . . Power Chain Reactions 2 | . 1 1 . . . . Missiles Intercepted . | . . . . . . . Alert | -11 -10 -9 -9 -9 -8 -8 ------- Run | Jun Mat Mat Min Exi Min Mat Peak Influence 533 | . 108 533 444 . . 335 Initial 154 | . . 41 154 . . . Average 142 | . 64 286 289 . . 106 Maximum Alert Level 2 | . . 2 2 . . 1 Low Security (%) 64 | 100 100 21 7 . 100 76 Level 1 30 | . . 55 83 . . 23 Level 2 4 | . . 22 9 . . . Level 3 . | . . . . . . . Level 4 . | . . . . . . . Level 5 . | . . . . . . . High Security . | . . . . . . . Max Security . | . . . . . . . Squads Dispatched 12 | . . 3 . . . 9 Investigation 3 | . . 1 . . . 2 Extermination . | . . . . . . . Reinforcement 3 | . . 2 . . . 1 Assault 1 | . . . . . . 1 Garrison 5 | . . . . . . 5 Intercept . | . . . . . . . Searches Triggered . | . . . . . . . Construction Impeded . | . . . . . . . Haulers Reinforced . | . . . . . . . Active Scanning Responses . | . . . . . . . Cargo Convoy Interrupts . | . . . . . . . Stealth | -11 -10 -9 -9 -9 -8 -8 --------- Run | Jun Mat Mat Min Exi Min Mat Distress Signals 3 | . . 2 . . . 1 Communications Jammed . | . . . . . . . Distress Signals . | . . . . . . . Times Spotted 97 | . 21 29 17 . . 30 Peak Tracking Total 7 | . 5 6 4 . . 7 Tactical Retreats 4 | . 1 . 1 . . 2 Traps | -11 -10 -9 -9 -9 -8 -8 ------- Run | Jun Mat Mat Min Exi Min Mat Traps Triggered 1 | . 1 . . . . . Indirectly . | . . . . . . . Trap Hack Attempts . | . . . . . . . Triggered . | . . . . . . . Disarmed . | . . . . . . . Reprogrammed . | . . . . . . . Reused . | . . . . . . . Traps Extracted . | . . . . . . . Installed . | . . . . . . . Triggered . | . . . . . . . Machines | -11 -10 -9 -9 -9 -8 -8 ---------- Run | Jun Mat Mat Min Exi Min Mat Machines Disabled 4 | . . 3 . . . 1 Max in Single Turn 1 | . . 1 . . . 1 Garrison Access 1 | . . . . . . 1 Machines Repaired . | . . . . . . . Machines Sabotaged . | . . . . . . . Overloaded Fab Kills . | . . . . . . . Hacking | -11 -10 -9 -9 -9 -8 -8 --------- Run | Jun Mat Mat Min Exi Min Mat Machines Accessed 12 | . 3 2 . 2 . 5 Terminals 8 | . 3 1 . . . 4 Fabricators . | . . . . . . . Repair Stations . | . . . . . . . Recycling Units . | . . . . . . . Scanalyzers 1 | . . 1 . . . . Garrison Access 1 | . . . . . . 1 Total Hacks 32 | . 9 5 . 2 . 16 Successful 21 | . 5 2 . 2 . 12 Failed 9 | . 3 3 . . . 3 Catastrophic 2 | . . 1 . . . 1 Database Lockouts 2 | . 1 . . . . 1 Manual 22 | . 5 2 . 1 . 14 Terminals 21 | . 9 2 . . . 10 Fabricators . | . . . . . . . Repair Stations . | . . . . . . . Recycling Units . | . . . . . . . Scanalyzers 3 | . . 3 . . . . Garrison Access 6 | . . . . . . 6 Terminal Hacks 9 | . 3 1 . 2 . 3 Record 1 | . . . . 1 . . Part Schematic 1 | . . . . . . 1 Robot Schematic 2 | . 1 . . . . 1 Robot Analysis 1 | . 1 . . . . . Branch Access Points 1 | . . 1 . . . . Garrison Index 1 | . . . . . . 1 Unreport Threat 1 | . 1 . . . . . Derelict Proto ID Bank 1 | . . . . 1 . . Fabricator Hacks . | . . . . . . . Repair Station Hacks . | . . . . . . . Recycling Unit Hacks . | . . . . . . . Scanalyzer 1 | . . 1 . . . . Insert Component 1 | . . 1 . . . . Garrison Access Hacks 2 | . . . . . . 2 Unlock Access 1 | . . . . . . 1 Coupler Status 1 | . . . . . . 1 Unauthorized Hacks 9 | . 2 . . . . 7 Terminals 5 | . 2 . . . . 3 Assimilate 1 | . . . . . . 1 Botnet 3 | . 1 . . . . 2 Operators 1 | . 1 . . . . . Fabricators . | . . . . . . . Repair Stations . | . . . . . . . Recycling Units . | . . . . . . . Scanalyzers . | . . . . . . . Garrison Access 4 | . . . . . . 4 Restock 1 | . . . . . . 1 Reprogram 1 | . . . . . . 1 Intercept 1 | . . . . . . 1 Eject 1 | . . . . . . 1 Data Cores Recovered 1 | . . . . . . 1 Used 1 | . . . . . . 1 Hacking Detections 6 | . . 2 . . . 4 Full Trace Events 1 | . . 1 . . . . Feedback Events . | . . . . . . . Feedback Blocked . | . . . . . . . Robot Schematics Acquired 2 | . 1 . . . . 1 Robots Built . | . . . . . . . Authchips . | . . . . . . . Time . | . . . . . . . Total Robot Build Rating . | . . . . . . . Part Schematics Acquired 1 | . . . . . . 1 Parts Built . | . . . . . . . Authchips . | . . . . . . . Time . | . . . . . . . Total Part Build Rating . | . . . . . . . Parts Repaired . | . . . . . . . Time . | . . . . . . . Parts Recycled . | . . . . . . . Recycled Matter . | . . . . . . . Retrieved Matter . | . . . . . . . Retrieved Components . | . . . . . . . Parts Scanalyzed 1 | . . 1 . . . . Part Schematics Acquired . | . . . . . . . Parts Damaged . | . . . . . . . Bothacking | -11 -10 -9 -9 -9 -8 -8 ------------ Run | Jun Mat Mat Min Exi Min Mat Used RIF Installer . | . . . . . . . Robots Hacked . | . . . . . . . Non-combat . | . . . . . . . Combat . | . . . . . . . Robot Hacks Applied . | . . . . . . . Relay Couplers Released 11 | . . . . . . 11 Ejected 4 | . . . . . . 4 Programmers 7 | . . . . . . 7 Fabnet Peak Effective % . | . . . . . . . Robots Rewired . | . . . . . . . Allies Hacked . | . . . . . . . Hacks Repelled . | . . . . . . . Allies | -11 -10 -9 -9 -9 -8 -8 -------- Run | Jun Mat Mat Min Exi Min Mat Total Allies 1 | . . . . . . 1 Largest Group 1 | . . . . . . 1 Highest-Rated Group 38 | . . . . . . 38 Highest-Rated Ally 38 | . . . . . . 38 Total Orders . | . . . . . . . Ally Attacks 7 | . . . . . . 7 Total Damage 215 | . . . . . . 215 Kills 4 | . . . . . . 4 Allies Corrupted . | . . . . . . . Allies Melted . | . . . . . . . Intel | -11 -10 -9 -9 -9 -8 -8 ------- Run | Jun Mat Mat Min Exi Min Mat Robot Analysis Total 1 | . 1 . . . . . Derelict Logs Recovered 1 | . . . 1 . . . Drone Launches . | . . . . . . . Drone Recoveries . | . . . . . . . Exploration | -11 -10 -9 -9 -9 -8 -8 ------------- Run | Jun Mat Mat Min Exi Min Mat Turns Passed 6670 | 76 789 847 665 542 114 3637 Spaces Moved 2126 | 42 418 517 334 318 46 451 Core 3 | 3 . . . . . . Treads 1306 | 39 81 37 334 318 46 451 Legs . | . . . . . . . Wheels 817 | . 337 480 . . . . Hover . | . . . . . . . Flight . | . . . . . . . Fastest Speed 50 | 50 80 80 170 170 170 170 Average Speed 141 | 152 105 105 170 170 170 170 Slowest Speed 170 | 160 160 170 170 170 170 170 Overloaded Moves . | . . . . . . . Propulsion Burnouts . | . . . . . . . Robots Hopped . | . . . . . . . Cave-ins Triggered . | . . . . . . . Exploration Rate (%) 42 | 4 52 42 83 70 14 32 Regions Visited 6 Branch Regions 3 Pre-discovered Areas 2 | . . . 1 1 . . Known Exits Taken 1 | . . 1 . . . . Unknown Exits Taken 5 | 1 1 . 1 1 1 . Scrap Searched 2 | . . . 2 . . . Spaces Dug 3 | . . . . . . 3 Terrain Destroyed 12 | . 5 4 . . . 3 Melee 3 | . . . . . . 3 Projectile . | . . . . . . . AOE 9 | . 5 4 . . . . Terrain Rammed . | . . . . . . . Walls Destroyed . | . . . . . . . Machines Disabled . | . . . . . . . Actions | -11 -10 -9 -9 -9 -8 -8 --------- Run | Jun Mat Mat Min Exi Min Mat Total 5426 | 51 667 702 385 321 80 3220 Wait 2931 | . 183 51 7 . 32 2658 Move 2120 | 41 417 516 333 317 45 451 Hop . | . . . . . . . Pick Up 32 | 4 4 12 4 1 . 7 Fast Attach 22 | 6 4 9 1 . . 2 Attach 14 | . . 3 2 . . 9 Detach 1 | . . 1 . . . . Swap 32 | . 8 11 1 1 . 11 Drop 19 | . 1 10 2 2 . 4 Fire 211 | . 50 89 35 . . 37 Melee 37 | . . . . . . 37 Ram . | . . . . . . . Kick . | . . . . . . . Crush 7 | . . . . . 3 4 Escape Stasis . | . . . . . . . Rewire . | . . . . . . . Trap . | . . . . . . . Miscellaneous . | . . . . . . . Route ------- -11/Junkyard -10/Materials (discovered 2 exits: *Mat / [*Sub]) -9/Materials (discovered 4 exits: *Mat / *Min / Sto x2) -9/Mines -9/Exiles -8/Mines -8/Materials History --------- Turn | Location | Event 17 | -11/Junkyard | Discovered new exit (range 15) 77 | -11/Junkyard | Entered Materials 207 | -10/Materials | Central database locked down 320 | -10/Materials | Build established: Mutant 555 | -10/Materials | Discovered new exit (range 16) 576 | -10/Materials | Discovered new exit (range 4) 597 | -10/Materials | Core integrity fell below 50% 600 | -10/Materials | Derelicts attacked the area 614 | -10/Materials | Core integrity fell below 20% 866 | -10/Materials | Entered another Materials area 866 | -9/Materials | Evolved 2 slots: Utility x2 1452 | -9/Materials | Discovered new exit (range 16) 1584 | -9/Materials | Discovered new exit (range 16) 1602 | -9/Materials | Identified exit to Mines 1602 | -9/Materials | Identified exit to Storage 1713 | -9/Materials | Entered Mines 1714 | -9/Mines | Learned location of Storage (-9) 2052 | -9/Mines | Core integrity fell below 50% 2303 | -9/Mines | Found a damaged Exp. Sensor Array with a note attached 2310 | -9/Mines | Found Prototype Device 2313 | -9/Mines | Learned location of 1 exit from Lower Caves 2369 | -9/Mines | Deemed a non-threat by the Exiles lab entrance 2369 | -9/Mines | Discovered new exit (range 6) 2378 | -9/Mines | Entered Exiles 2421 | -9/Exiles | Met 8R-AWN 2452 | -9/Exiles | Met EX-HEX 2504 | -9/Exiles | Met EX-BIN 2565 | -9/Exiles | Aligned with FarCom system 2567 | -9/Exiles | Given EX-Vault access code 2608 | -9/Exiles | Opened EX-Vault 2624 | -9/Exiles | Found Longsword +1 2659 | -9/Exiles | Warned to stay clear of 0b10 Research branches 2708 | -9/Exiles | Met EX-DEC 2722 | -9/Exiles | Learned location of Zion (-6) 2902 | -9/Exiles | Discovered new exit (range 14) 2920 | -9/Exiles | Left Exiles lab with Longsword +1 2920 | -9/Exiles | Entered Mines 2984 | -8/Mines | Discovered new exit (range 14) 3034 | -8/Mines | Entered Materials 3034 | -8/Materials | Evolved 2 slots: Utility x2 3424 | -8/Materials | Build established: Hacker-Mutant 3530 | -8/Materials | Central database locked down 3667 | -8/Materials | Garrison activated, responded to threat 3725 | -8/Materials | Core integrity fell below 50% 3778 | -8/Materials | Lost 12 parts (2p4n2u4w) 3796 | -8/Materials | Destroyed 8 combat bots 3884 | -8/Materials | Core integrity fell below 20% 6353 | -8/Materials | Identified exit to Garrison 6518 | -8/Materials | Garrison activated, responded to threat 6671 | -8/Materials | Self-destructed Last Messages --------------- 06537_ Destroyed Lgt. Treads. 06544_ K-01 Serf cleans the Garrison Access. 06548_ K-01 Serf collects debris. 06566_ K-01 Serf cleans the Garrison Access. 06618_ S-10 Pest emerges from the garrison. 06618_ S-10 Pest destroyed. 06618_ Emergency Access malfunctions. 06625_ Destroyed Lgt. Ion Engine. 06625_ S-10 Pest destroyed. 06649_ K-01 Serf collects debris. 06666_ P-60 Hacker triggered Proton Bomb Trap. 06666_ A bubble of electromagnetic force engulfs the area. 06666_ Chain reaction triggered in Corrupted Lgt. Nuclear Core. 06666_ M-13 Machinist destroyed. 06666_ ALERT: Garrison Access compromised, dispatching assault squad. 06666_ Garrison Access disabled. 06669_ U-05 Engineer lays Concrete. 06669_ Sneak attack on P-60 Hacker. 06669_ P-60 Hacker destroyed. 06670_ U-05 Engineer lays Concrete. Map ----- +----------------------------------------------------+ | ?? ???????????##% ######/# ] #??? | | ????????????????## % # # #??? | | ????????????????## # ### #######??? | | ????????????????## + #?###????????? | | ????????????????## %[# #????????????? | | ????????????????## ############????????? | | ????????????????## ## #????????? | | ????????????????# # """ """ #????????? | | ????????????????# % # """ #????????? | | ???????????????## + """ #????????? | | ???????????????## ] #!%[ #????????? | | ???????????????## # = #????????? | | ???????????????### ## #????????? | | ???????????????### % ## #????????? | | ?????????????????#% ############????????? | | ?????????????????# #???????????????????? | | ?????????????????# %#???????????????????? | | ?????????????????# #???????????????????? | | ?????????????????# ########????????????? | | ?????????????????# # !#????????????? | | ?????????#######?# # """[=##???????????? | | ?????????# ]]% #% %# "G [ !#???????????? | | ?????????# ]* / %%+%" %%#???????????? | | ?????????# ]* # # u[ [=*#???????????? | | ?????????# ??????# %%#[=%=!%#????????????? | | ?????????????????# ###!@;##????????????? | | ?????????????????# #=!%! #????????????? | | ?????????????????#* # !![ #????????????? | | ?????????????????#%= # ! #????????????? | | ?????????????????+ + #????????????? | | ???????????????? # # [ ]#????????????? | | ???????????????? # # #????????????? | | ???????????????"?# ########????????????? | | ???????????????T?# #???????????????????? | | ?????????????????# #???????????????????? | | ????????????Y????# #???????????????????? | | ?????????????????# #???????????????????? | | ?????????????????# #???????????????????? | | ?????????????????# ????????????????????? | | ?????????????????? ????????????????????? | | ?????????????????? ????????????????????? | | ?????????????????????????????????????????? | | ?????????????????????????????????????????? | | ?????????????????????????????????????????? | | ?????????????????????????????????????????? | | ?????????????????????????????????????????? | | ?????????????????????????????????????????? | | ?????????????????????????????????????????? | | ?????????????????????????????????????????? | | ?????????????????????????????????????????? | +----------------------------------------------------+ Best States ------------- Heat Dissipation 42 Energy Generation 14 Energy Capacity 250 Matter Stores 300 Matter Capacity 300 Sight Range 16 Terrain Scan Density 10 Armor Coverage 225 Propulsion Shielding 33 Evasion (%) 44 Targeting Accuracy 6 Recoil Reduction 2 Offensive Hacking 30 Defensive Hacking 10 Item Schematics ----------------- Hacking Suite | -8/Materials | Hacked Robot Schematics ------------------ M-13 Machinist | -10/Materials | Hacked M-28 Smith | -8/Materials | Hacked Fabricated ------------ Nothing Alien Tech Used ----------------- None Achievements -------------- None Challenges ------------ None Game ------ Seed VisualAssaultCutter Manual? 0 Play Time 00:34:40 Cumulative 374.0 hours Start 2023.09.26 @ 14:23:39 End 2023.09.26 @ 14:57:17 Sessions 1 Manual Loads 0 Difficulty Rogue Special Mode None Game No. 238 Rogue 235 Adventurer 3 Explorer 0 Win Type - Total 7 Types 6/0/1/0/0/0/0/0/0 Lore% 69 Gallery% 76 Achievement% 66 Wizard Run 0 Options --------- ASCII 0 Keyboard 0 Movement Numpad Keybinds 0 Fullscreen 1 Font 18/SmallcapsGlow Map View 76x50 Tactical HUD 1 Map Filters NONE Filters NONE Steam 1 RUN: 19c00ca2-9f3f-4640-8abc-df3e10362b91